Workbook

Sheet 2DCLSAD-HUNT
A1: Model Name: | B1: 2D_continuous_line_source_advection_dispersion_hunt
A2: Model Type: | B2: Contaminant Transport
A3: Dispersion Dimension: | B3: 2
A4: Advection: | B4: Yes
A5: Dispersion: | B5: Yes
A6: Source History: | B6: Constant Injection
A7: Source Dimension: | B7: Line (Point)
A8: Decay: | B8: None
A9: Retardation: | B9: None
A10: References: | B10: Hunt, B. 1978. Dispersive Sources in Uniform Groundwater Flow. J. of Hydraulics, ASCE, Vol 104., No. HY1, pp 75-85.
B11: Bear, J. 1979. Groundwater Hydrology
B12: Yuan, D, 1995. ``Accurate approximations for one-, two-, and three-dimensional groundwater mass transport from an exponentially decaying contaminant source.'' MS Thesis, Department of Civil and Environmental Engineering, University of Houston
A13: Method:
A14: Author: | B14: Dr. T.G. Cleveland for CIVE6361/7332 Students; Spring 1995
B15: Rewrite in VBA Mac Excel 2011 Fall 2015
A16: Notes: | B16: Model Graphics illustrate how to create plume maps and histories at specified location.
B17: VBA Macros are SLOW -- Make Changes and Wait for Recalculation
A19: Macros: | B19: W(U),LEAKY(U,V) | D19: Well Functions contained in Module1 as local to this worksheet macros
A21: MODEL INPUT VALUES
B22: Input Data
A23: Co | B23: 100000 | C23: Input Concentration (mg/m^3)
A24: Co (computed) | B24: =B23/(100^3) -> 0.1 | C24: mg/L
A25: Q | B25: 10 | C25: Injection Rate (m^3/day)
A26: Q (computed) | B26: =B25*(3.25^3)/(7.48)/(1440) -> 0.03187028836 | C26: gpm
A27: m | B27: 1 | C27: Aquifer Thickness (m)
A28: n | B28: 0.3 | C28: Porosity
A29: q | B29: 0.3 | C29: Specific discharge
A30: al | B30: 1 | C30: Longitudinal Dispersivity (m)
A31: at | B31: 0.1 | C31: Transverse Dispersivity (m)
A33: Computed Constants
A34: M | B34: =B23*B25 -> 1000000 | C34: Mass Loading Rate (mg/day)
A35: B | B35: =2*B36/B40 -> 2
A36: Dl | B36: =B30*B40 -> 1
A37: Dt | B37: =B31*B40 -> 0.1
A38: Dl/Dt | B38: =B36/B37 -> 10
A39: Dl*Dt | B39: =B36*B37 -> 0.1
A40: u | B40: =B29/B28 -> 1 | C40: Velocity
C42: Time Calculations
D43: (mg/L) | E43: (mg/m^3)
A44: x-coordinate | B44: y-coordinate | C44: t-coordinate | D44: C(x.y.t) | E44: C(x,y,t)
A45: 0.1 | B45: 0 | C45: 0.0001 | D45: =E45/(100^3) -> 1.416221065e-13 | E45: =$B$34*EXP(A45/$B$35)*LEAKY(((A45^2+$B$38*B45^2)/(4*$B$36*C45)),SQRT(A45^2+$B$38*B45^2)/$B$35)/(4*PI()*SQRT($B$39)) -> 1.416221065e-07
A46: 0.1 | B46: 0 | C46: 0.001 | D46: =E46/(100^3) -> 0.006590605397 | E46: 6590.605397
A47: 0.1 | B47: 0 | C47: 0.01 | D47: 0.2759159934 | E47: 275915.9934
A48: 0.1 | B48: 0 | C48: 0.1 | D48: 0.8238609459 | E48: 823860.9459
A49: 0.1 | B49: 0 | C49: 1 | D49: 1.371805964 | E49: 1371805.964
A50: 0.1 | B50: 0 | C50: 2 | D50: 1.499748561 | E50: 1499748.561
A51: 0.1 | B51: 0 | C51: 4 | D51: 1.589715591 | E51: 1589715.591
A52: 0.1 | B52: 0 | C52: 8 | D52: 1.634796199 | E52: 1634796.199
A53: 0.1 | B53: 0 | C53: 16 | D53: 1.646730437 | E53: 1646730.437
A54: 0.1 | B54: 0 | C54: 32 | D54: 1.647730202 | E54: 1647730.202
A55: 0.1 | B55: 0 | C55: 64 | D55: 1.647730202 | E55: 1647730.202
A56: 0.1 | B56: 0 | C56: 128 | D56: 1.647730202 | E56: 1647730.202
A57: 0.1 | B57: 0 | C57: 256 | D57: 1.647730202 | E57: 1647730.202
A58: 0.1 | B58: 0 | C58: 512 | D58: 1.647730202 | E58: 1647730.202
A59: 0.1 | B59: 0 | C59: 1024 | D59: 1.647730202 | E59: 1647730.202
A62: Plume Calculations
A63: Time | B63: 1
A64: dx | B64: 0.25
A65: dy | B65: 0.2
G67: <= Y =>
B68: -1 | C68: =B68+$B$65 -> -0.8 | D68: -0.6 | E68: -0.4 | F68: -0.2 | G68: 0 | H68: 0.2 | I68: 0.4 | J68: 0.6 | K68: 0.8 | L68: 1
A69: -1.0001 | B69: =$B$34*EXP($A69/$B$35)*LEAKY((($A69^2+$B$38*B$68^2)/(4*$B$36*$B$63)),SQRT($A69^2+$B$38*B$68^2)/$B$35)/(4*PI()*SQRT($B$39))/(100^3) -> 0.002421825519 | C69: =$B$34*EXP($A69/$B$35)*LEAKY((($A69^2+$B$38*C$68^2)/(4*$B$36*$B$63)),SQRT($A69^2+$B$38*C$68^2)/$B$35)/(4*PI()*SQRT($B$39))/(100^3) -> 0.007909540524 | D69: 0.02238668018 | E69: 0.05367943529 | F69: 0.1060750896 | G69: 0.1410122723 | H69: 0.1060750896 | I69: 0.05367943529 | J69: 0.02238668018 | K69: 0.007909540524 | L69: 0.002421825519
A70: =A69+$B$64 -> -0.7501 | B70: 0.003149804343 | C70: 0.01044946269 | D70: 0.03034364265 | E70: 0.07645752872 | F70: 0.1645651112 | G70: 0.2365244949 | H70: 0.1645651112 | I70: 0.07645752872 | J70: 0.03034364265 | K70: 0.01044946269 | L70: 0.003149804343
A71: -0.5001 | B71: 0.003941856122 | C71: 0.01323528907 | D71: 0.03848299676 | E71: 0.1032343715 | F71: 0.245152176 | G71: 0.4056752773 | H71: 0.245152176 | I71: 0.1032343715 | J71: 0.03848299676 | K71: 0.01323528907 | L71: 0.003941856122
A72: -0.2501 | B72: 0.00474270601 | C72: 0.01604551695 | D72: 0.04734715604 | E72: 0.1307591557 | F72: 0.3398836696 | G72: 0.7502969371 | H72: 0.3398836696 | I72: 0.1307591557 | J72: 0.04734715604 | K72: 0.01604551695 | L72: 0.00474270601
A73: -0.0001 | B73: 0.005483075956 | C73: 0.01859855835 | D73: 0.05516390082 | E73: 0.1539653464 | F73: 0.4163290744 | G73: 4.779662996 | H73: 0.4163290744 | I73: 0.1539653464 | J73: 0.05516390082 | K73: 0.01859855835 | L73: 0.005483075956
A74: 0.2499 | B74: 0.006089950195 | C74: 0.02060359673 | D74: 0.0607976452 | E74: 0.1679082912 | F74: 0.4364713312 | G74: 0.9638432743 | H74: 0.4364713312 | I74: 0.1679082912 | J74: 0.0607976452 | K74: 0.02060359673 | L74: 0.006089950195
A75: 0.4999 | B75: 0.006499436612 | C75: 0.02182286782 | D75: 0.06345325004 | E75: 0.1702244549 | F75: 0.4042668029 | G75: 0.6690795639 | H75: 0.4042668029 | I75: 0.1702244549 | J75: 0.06345325004 | K75: 0.02182286782 | L75: 0.006499436612
A76: 0.7499 | B76: 0.006668769151 | C76: 0.02212386128 | D76: 0.06424552004 | E76: 0.161886962 | F76: 0.348467174 | G76: 0.5008821528 | H76: 0.348467174 | I76: 0.161886962 | J76: 0.06424552004 | K76: 0.02212386128 | L76: 0.006668769151
A77: 0.9999 | B77: 0.006584029687 | C77: 0.02150335145 | D77: 0.0608631064 | E77: 0.145945276 | F77: 0.2884179184 | G77: 0.3834302433 | H77: 0.2884179184 | I77: 0.145945276 | J77: 0.0608631064 | K77: 0.02150335145 | L77: 0.006584029687
A78: 1.2499 | B78: 0.00626157273 | C78: 0.02007770167 | D78: 0.05523126483 | E78: 0.1258698562 | F78: 0.2322383172 | G78: 0.2944809179 | H78: 0.2322383172 | I78: 0.1258698562 | J78: 0.05523126483 | K78: 0.02007770167 | L78: 0.00626157273
A79: 1.4999 | B79: =$B$34*EXP($A79/$B$35)*LEAKY((($A79^2+$B$38*B$68^2)/(4*$B$36*$B$63)),SQRT($A79^2+$B$38*B$68^2)/$B$35)/(4*PI()*SQRT($B$39))/(100^3) -> 0.005743230414 | C79: 0.0180473232 | D79: 0.0482001579 | E79: 0.1046258163 | F79: 0.1827565564 | G79: 0.2247181073 | H79: 0.1827565564 | I79: 0.1046258163 | J79: 0.0482001579 | K79: 0.0180473232 | L79: 0.005743230414
A80: 1.7499 | B80: 0.005087193724 | C80: 0.0156502368 | D80: 0.04059181212 | E80: 0.08636492744 | F80: 0.1407849927 | G80: 0.1694222301 | H80: 0.1407849927 | I80: 0.08636492744 | J80: 0.04059181212 | K80: 0.0156502368 | L80: 0.005087193724
A81: 1.9999 | B81: 0.004357338385 | C81: 0.01311892784 | D81: 0.0330817653 | E81: 0.06797917774 | F81: 0.1088347171 | G81: 0.1259315649 | H81: 0.1088347171 | I81: 0.06797917774 | J81: 0.0330817653 | K81: 0.01311892784 | L81: 0.004357338385
A82: 2.2499 | B82: 0.003613587026 | C82: 0.01064928203 | D82: 0.02615087796 | E82: 0.05212278672 | F82: 0.08115546437 | G82: 0.09467907137 | H82: 0.08115546437 | I82: 0.05212278672 | J82: 0.02615087796 | K82: 0.01064928203 | L82: 0.003613587026
A83: 2.4999 | B83: 0.003315400005 | C83: 0.008384314988 | D83: 0.02008671793 | E83: 0.03898227072 | F83: 0.05932921538 | G83: 0.06857066922 | H83: 0.05932921538 | I83: 0.03898227072 | J83: 0.02008671793 | K83: 0.008384314988 | L83: 0.003315400005
A84: 2.7499 | B84: 0.002550694742 | C84: 0.006411017492 | D84: 0.01501298665 | E84: 0.028462967 | F84: 0.04250884029 | G84: 0.04876377943 | H84: 0.04250884029 | I84: 0.028462967 | J84: 0.01501298665 | K84: 0.006411017492 | L84: 0.002550694742
A85: 2.9999 | B85: 0.001900127122 | C85: 0.004766475495 | D85: 0.01093051503 | E85: 0.02030183963 | F85: 0.02984233219 | G85: 0.03402448214 | H85: 0.02984233219 | I85: 0.02030183963 | J85: 0.01093051503 | K85: 0.004766475495 | L85: 0.001900127122
A86: 3.2499 | B86: 0.001371283995 | C86: 0.003907403911 | D86: 0.007759046276 | E86: 0.01415231806 | F86: 0.02052300642 | G86: 0.02327997603 | H86: 0.02052300642 | I86: 0.01415231806 | J86: 0.007759046276 | K86: 0.003907403911 | L86: 0.001371283995
A87: 3.4999 | B87: 0.0009591168221 | C87: 0.002701126252 | D87: 0.00537364092 | E87: 0.009644996386 | F87: 0.01382423665 | G87: 0.01561362644 | H87: 0.01382423665 | I87: 0.009644996386 | J87: 0.00537364092 | K87: 0.002701126252 | L87: 0.0009591168221
A88: 3.7499 | B88: 0.0006503668148 | C88: 0.001812156886 | D88: 0.004084075395 | E88: 0.006427870113 | F88: 0.009119859505 | G88: 0.01026212142 | H88: 0.009119859505 | I88: 0.006427870113 | J88: 0.004084075395 | K88: 0.001812156886 | L88: 0.0006503668148
A89: 3.9999 | B89: =$B$34*EXP($A89/$B$35)*LEAKY((($A89^2+$B$38*B$68^2)/(4*$B$36*$B$63)),SQRT($A89^2+$B$38*B$68^2)/$B$35)/(4*PI()*SQRT($B$39))/(100^3) -> 0.0004276623951 | C89: 0.001180116513 | D89: 0.00263313897 | E89: 0.004713534081 | F89: 0.006713950593 | G89: 0.00660835454 | H89: 0.006713950593 | I89: 0.004713534081 | J89: 0.00263313897 | K89: 0.001180116513 | L89: 0.0004276623951
A90: 4.2499 | B90: 0.0002727640176 | C90: 0.0007460828591 | D90: 0.001649983033 | E90: 0.002930365009 | F90: 0.004150837608 | G90: 0.004664771004 | H90: 0.004150837608 | I90: 0.002930365009 | J90: 0.001649983033 | K90: 0.0007460828591 | L90: 0.0002727640176
A91: 4.4999 | B91: 0.0001687651255 | C91: 0.0004579468654 | D91: 0.001004805482 | E91: 0.001772294774 | F91: 0.002498485654 | G91: 0.002803014337 | H91: 0.002498485654 | I91: 0.001772294774 | J91: 0.001004805482 | K91: 0.0004579468654 | L91: 0.0001687651255
A92: 4.7499 | B92: 0.0001013063936 | C92: 0.0002729135105 | D92: 0.0005946248068 | E92: 0.001042515485 | F92: 0.001463638894 | G92: 0.001639619856 | H92: 0.001463638894 | I92: 0.001042515485 | J92: 0.0005946248068 | K92: 0.0002729135105 | L92: 0.0001013063936
A93: 4.9999 | B93: 5.900439146e-05 | C93: 0.0001579139504 | D93: 0.000341915358 | E93: 0.0005962945803 | F93: 0.0008341771383 | G93: 0.0009332886071 | H93: 0.0008341771383 | I93: 0.0005962945803 | J93: 0.000341915358 | K93: 0.0001579139504 | L93: 5.900439146e-05
A94: 5.2499 | B94: 3.334637509e-05 | C94: 8.871476583e-05 | D94: 0.0001910125191 | E94: 0.0003315715251 | F94: 0.0004623996991 | G94: 0.0005167687566 | H94: 0.0004623996991 | I94: 0.0003315715251 | J94: 0.0001910125191 | K94: 8.871476583e-05 | L94: 3.334637509e-05
A95: 5.4999 | B95: 1.828707308e-05 | C95: 4.838815689e-05 | D95: 0.0001036632114 | E95: 0.000179202736 | F95: 0.0002492261503 | G95: 0.0002782619934 | H95: 0.0002492261503 | I95: 0.000179202736 | J95: 0.0001036632114 | K95: 4.838815689e-05 | L95: 1.828707308e-05
A96: 5.7499 | B96: 9.731468383e-06 | C96: 2.562318624e-05 | D96: 5.464610404e-05 | E96: 9.412017333e-05 | F96: 0.0001305812367 | G96: 0.0001456711463 | H96: 0.0001305812367 | I96: 9.412017333e-05 | J96: 5.464610404e-05 | K96: 2.562318624e-05 | L96: 9.731468383e-06
A97: 5.9999 | B97: 5.025194897e-06 | C97: 1.317219035e-05 | D97: 2.797812342e-05 | E97: 4.803052917e-05 | F97: 6.649426429e-05 | G97: 7.412291718e-05 | H97: 6.649426429e-05 | I97: 4.803052917e-05 | J97: 2.797812342e-05 | K97: 1.317219035e-05 | L97: 5.025194897e-06
A98: 6.2499 | B98: 2.518055122e-06 | C98: 6.573422193e-06 | D98: 1.391097108e-05 | E98: 2.381114948e-05 | F98: 3.290170996e-05 | G98: 3.665211469e-05 | H98: 3.290170996e-05 | I98: 2.381114948e-05 | J98: 1.391097108e-05 | K98: 6.573422193e-06 | L98: 2.518055122e-06
